Cogmind - Beta 10.2 @@@ ROGUE MODE // 2021.12.12 @ 12:52:10 Player: rypo Result: Destroyed by S-10 Pest with Light Assault Rifle Performance ------------- Evolutions (0) 0 Regions Visited (2) 400 Robots Destroyed (10) 50 Value Destroyed (267) 267 Prototype IDs (0) 0 Alien Tech Used (0) 0 Bonus (0) 0 TOTAL SCORE: 717 Bonus ------- None Cogmind --------- Core Integrity 0/250 Matter 248/300 Energy 90/100 System Corruption 0% Temperature Cool (2) Movement Walking (120) Location -10/Mines Parts ------- > --- POWER (1) -------- (None) > --- PROPULSION (2) --- Aluminum Leg Aluminum Leg > --- UTILITY (2) ------ Small Storage Unit Improved Signal Interpreter > --- WEAPON (2) ------- (None) > --- INVENTORY (6) ---- Medium Laser Light EM Pulse Cannon Mining Laser Peak State ------------ > --- POWER ------------ Light Ion Engine > --- PROPULSION ------- Aluminum Leg Aluminum Leg > --- UTILITY ---------- Improved Signal Interpreter Reclamation Unit > --- WEAPON ----------- Medium Laser Assault Rifle > --- INVENTORY -------- (None) [Rating: 9] Favorites ----------- Power Light Ion Engine Engine Light Ion Engine Propulsion Aluminum Leg Leg Aluminum Leg Utility Improved Signal Interpreter Device Reclamation Unit Storage Small Storage Unit Processor Improved Signal Interpreter Weapon Medium Laser Energy Gun Medium Laser Energy Cannon Light EM Pulse Cannon Ballistic Gun Assault Rifle Launcher Grenade Launcher Build | -11 -10 -10 ------- Run | Scr Mat Min Slots Evolved . | . . . Power . | . . . Propulsion . | . . . Utility . | . . . Weapon . | . . . Parts Attached 18 | 5 9 4 Power 1 | 1 . . Engine 1 | 1 . . Core . | . . . Reactor . | . . . Propulsion 5 | 2 2 1 Treads . | . . . Leg 5 | 2 2 1 Wheel . | . . . Hover . | . . . Flight . | . . . Utility 4 | . 4 . Device 1 | . 1 . Storage 2 | . 2 . Processor 1 | . 1 . Hackware . | . . . Protection . | . . . Artifact . | . . . Weapon 8 | 2 3 3 Energy Gun 3 | 1 2 . Energy Cannon 1 | . . 1 Ballistic Gun 1 | 1 . . Ballistic Cannon . | . . . Launcher 3 | . 1 2 Special Weapon . | . . . Impact Weapon . | . . . Slashing Weapon . | . . . Piercing Weapon . | . . . Special Melee Weapon . | . . . Unidentified Prototypes . | . . . Parts Lost 6 | . 1 5 Power 1 | . . 1 Propulsion 1 | . . 1 Utility . | . . . Weapon 4 | . 1 3 Highest Loss Streak 2 | . 1 2 Average Slot Usage (%) 85 | . 87 82 Engine 9 | . 14 2 Leg 27 | . 28 26 Device 2 | . 3 . Storage 8 | . 5 14 Processor 10 | . 9 14 Energy Gun 11 | . 17 2 Energy Cannon 3 | . . 8 Ballistic Gun 4 | . 7 . Launcher 5 | . 1 13 Naked Turns . | . . . Heaviest Build 23 | 7 23 12 Greatest Support 20 | 20 20 20 Greatest Overweight (x) 1 | . 1 1 Average Overweight (x) . | . . . Largest Inventory Capacity 10 | 4 10 6 Average Capacity 5 | 4 4 6 Most Carried 6 | 3 6 4 Average Carried 2 | 1 2 3 Final Capacity 6 | 4 6 6 Final Carried 4 | 2 4 3 Class Distribution -------------------- 100% | Mutant Dominant Class ---------------- Mutant | -10/Materials Mutant | -10/Mines Resources | -11 -10 -10 ----------- Run | Scr Mat Min Matter Collected 470 | 251 165 54 Remotely . | . . . Salvage Created 258 | 44 163 51 Parts 19 | 2 13 4 Haulers Intercepted . | . . . Recyclers Shooed . | . . . Parts Field Recycled . | . . . Retrieved Matter . | . . . Parts Self-Destructed . | . . . Prevented . | . . . Kills | -11 -10 -10 ------- Run | Scr Mat Min Combat Hostiles Destroyed 10 | 1 6 3 Guns 7 | 1 6 . Cannons 1 | . . 1 AOE 2 | . . 2 Classes Destroyed 2 | 1 1 . Swarmer 4 | . 3 1 Grunt 6 | 1 3 2 Best Kill Streak 3 | 1 3 2 Combat Bots Only 3 | 1 3 2 Max Kills in Single Turn 1 | 1 1 1 Gunslinging . | . . . Exploded 1 | . . 1 Melee . | . . . Uniques/NPCs Destroyed . | . . . Combat | -11 -10 -10 -------- Run | Scr Mat Min Damage Taken 980 | 57 257 666 Core 258 | . 29 229 Absorbed by Shields . | . . . Core Remaining (%) 100 | 100 . . Volleys Fired 44 | 4 28 12 Largest 2 | 2 2 2 Hottest 100 | 70 100 80 Shots Fired 76 | 8 53 15 Gun 64 | 8 53 3 Cannon 3 | . . 3 Launcher 9 | . . 9 Special . | . . . Kinetic 27 | 4 23 . Thermal 37 | 4 30 3 Explosive 9 | . . 9 Electromagnetic 3 | . . 3 Robot Hit Streak 7 | 3 3 7 Robot Miss Streak 4 | 1 4 2 Penetration Max . | . . . Secondary Targets 1 | . 1 . Max Gunslinging Chain 1 | . 1 . Shots Hit Robots 39 | 5 26 8 Core Hits 18 | 2 10 6 Critical Hits . | . . . Critical Kills . | . . . Critical Parts Destroyed . | . . . Melee Attacks . | . . . Impact . | . . . Slashing . | . . . Piercing . | . . . Sneak Attacks . | . . . Combat Hostiles . | . . . Follow-up Attacks . | . . . Damage Inflicted 761 | 87 310 364 Guns 410 | 87 310 13 Cannons 19 | . . 19 Explosions 332 | . . 332 Melee . | . . . Ramming . | . . . Kinetic 210 | 50 160 . Thermal 200 | 37 150 13 Explosive 332 | . . 332 Electromagnetic 19 | . . 19 Impact . | . . . Slashing . | . . . Piercing . | . . . Highest Corruption . | . . . Average Corruption . | . . . Corruption Purged . | . . . Overload Shots . | . . . Overflow Damage 35 | . . 35 Projectiles . | . . . Explosions 35 | . . 35 Melee . | . . . Knockbacks . | . . . Impact . | . . . Kinetic . | . . . Secondary . | . . . Self-Inflicted Damage 126 | . . 126 Shots 6 | . . 6 Rammed . | . . . Targets Rammed . | . . . Kicked . | . . . Crushed . | . . . Highest Temperature 165 | 60 165 54 Average Temperature 46 | 33 54 20 Received Heat Transfer 222 | 30 90 102 Siege Activations . | . . . Robots Corrupted . | . . . Combat Hostiles . | . . . Parts Fried . | . . . Impact Corruptions . | . . . Robots Melted . | . . . Combat Hostiles . | . . . Parts Melted . | . . . Heat Transferred 592 | 111 444 37 Parts Sabotaged . | . . . Parts Stolen . | . . . Parts Stripped . | . . . Power Chain Reactions . | . . . Missiles Intercepted . | . . . Alert | -11 -10 -10 ------- Run | Scr Mat Min Peak Influence 145 | 20 145 45 Initial 13 | . 13 . Average 47 | 2 69 24 Maximum Alert Level . | . . . Low Security (%) 100 | 100 100 100 Level 1 . | . . . Level 2 . | . . . Level 3 . | . . . Level 4 . | . . . Level 5 . | . . . High Security . | . . . Max Security . | . . . Squads Dispatched 4 | . 4 . Investigation . | . . . Extermination . | . . . Reinforcement 4 | . 4 . Assault . | . . . Garrison . | . . . Intercept . | . . . Construction Impeded . | . . . Haulers Reinforced . | . . . Stealth | -11 -10 -10 --------- Run | Scr Mat Min Distress Signals 4 | . 4 . Communications Jammed . | . . . Distress Signals . | . . . Times Spotted 18 | 1 12 5 Peak Tracking Total 3 | 1 3 3 Tactical Retreats . | . . . Traps | -11 -10 -10 ------- Run | Scr Mat Min Traps Triggered 1 | . 1 . Indirectly . | . . . Trap Hack Attempts . | . . . Triggered . | . . . Disarmed . | . . . Reprogrammed . | . . . Reused . | . . . Traps Extracted . | . . . Installed . | . . . Triggered . | . . . Machines | -11 -10 -10 ---------- Run | Scr Mat Min Machines Disabled 1 | . . 1 Max in Single Turn 1 | . . 1 Machines Sabotaged . | . . . Garrisons Compromised . | . . . Overloaded Fab Kills . | . . . Fab Network Shutdowns . | . . . Hacking | -11 -10 -10 --------- Run | Scr Mat Min Machines Accessed 1 | . 1 . Terminals 1 | . 1 . Fabricators . | . . . Repair Stations . | . . . Recycling Units . | . . . Scanalyzers . | . . . Garrison Access . | . . . Total Hacks 2 | . 2 . Successful 2 | . 2 . Failed . | . . . Catastrophic . | . . . Database Lockouts . | . . . Manual . | . . . Terminals 2 | . 2 . Fabricators . | . . . Repair Stations . | . . . Recycling Units . | . . . Scanalyzers . | . . . Garrison Access . | . . . Terminal Hacks 2 | . 2 . Record 1 | . 1 . Locate Traps 1 | . 1 . Fabricator Hacks . | . . . Repair Station Hacks . | . . . Recycling Unit Hacks . | . . . Scanalyzer . | . . . Garrison Access Hacks . | . . . Unauthorized Hacks . | . . . Terminals . | . . . Fabricators . | . . . Repair Stations . | . . . Recycling Units . | . . . Scanalyzers . | . . . Garrison Access . | . . . Data Cores Recovered . | . . . Used . | . . . Hacking Detections . | . . . Full Trace Events . | . . . Feedback Events . | . . . Feedback Blocked . | . . . Robot Schematics Acquired . | . . . Robots Built . | . . . Matter . | . . . Time . | . . . Total Robot Build Rating . | . . . Part Schematics Acquired . | . . . Parts Built . | . . . Matter . | . . . Time . | . . . Total Part Build Rating . | . . . Parts Repaired . | . . . Time . | . . . Parts Recycled . | . . . Recycled Matter . | . . . Retrieved Matter . | . . . Retrieved Components . | . . . Parts Scanalyzed . | . . . Part Schematics Acquired . | . . . Parts Damaged . | . . . Bothacking | -11 -10 -10 ------------ Run | Scr Mat Min Used RIF Installer . | . . . Robots Hacked . | . . . Non-combat . | . . . Combat . | . . . Robot Hacks Applied . | . . . Relay Couplers Released . | . . . Robots Rewired . | . . . Allies Hacked . | . . . Hacks Repelled . | . . . Allies | -11 -10 -10 -------- Run | Scr Mat Min Total Allies . | . . . Largest Group . | . . . Highest-Rated Group . | . . . Highest-Rated Ally . | . . . Total Orders . | . . . Ally Attacks . | . . . Total Damage . | . . . Kills . | . . . Allies Corrupted . | . . . Allies Melted . | . . . Intel | -11 -10 -10 ------- Run | Scr Mat Min Robot Analysis Total . | . . . Derelict Logs Recovered 1 | . . 1 Drone Launches . | . . . Drone Recoveries . | . . . Exploration | -11 -10 -10 ------------- Run | Scr Mat Min Turns Passed 1438 | 126 819 493 Spaces Moved 1060 | 99 585 376 Core 27 | 27 . . Treads . | . . . Legs 1033 | 72 585 376 Wheels . | . . . Hover . | . . . Flight . | . . . Fastest Speed 50 | 50 120 120 Average Speed 119 | 100 120 122 Slowest Speed 150 | 120 150 150 Overloaded Moves . | . . . Propulsion Burnouts . | . . . Robots Hopped . | . . . Cave-ins Triggered . | . . . Exploration Rate (%) 45 | 8 54 75 Regions Visited 2 Branch Regions 1 Pre-discovered Areas 1 | . . 1 Known Exits Taken 1 | . 1 . Unknown Exits Taken 1 | 1 . . Scrap Searched 1 | . . 1 Spaces Dug . | . . . Terrain Destroyed 56 | . . 56 Melee . | . . . Projectile . | . . . AOE 56 | . . 56 Terrain Rammed . | . . . Walls Destroyed . | . . . Machines Disabled . | . . . Actions | -11 -10 -10 --------- Run | Scr Mat Min Total 1162 | 117 652 393 Wait 5 | 3 2 . Move 1058 | 98 584 376 Hop . | . . . Pick Up 24 | 7 16 1 Fast Attach . | . . . Attach 12 | 5 5 2 Detach 2 | . 2 . Swap 6 | . 4 2 Drop 11 | . 11 . Fire 44 | 4 28 12 Melee . | . . . Ram . | . . . Kick . | . . . Crush . | . . . Escape Stasis . | . . . Rewire . | . . . Trap . | . . . Miscellaneous . | . . . Route ------- -11/Scrapyard -10/Materials (discovered 2 exits: *Mat / *Min) -10/Mines History --------- Turn | Location | Event 2 | -11/Scrapyard | Met Revision 17 94 | -11/Scrapyard | Discovered new exit (range 8) 127 | -11/Scrapyard | Entered Materials 318 | -10/Materials | Build established: Mutant 533 | -10/Materials | Discovered new exit (range 12) 695 | -10/Materials | Identified exit to Mines 773 | -10/Materials | Discovered new exit (range 9) 783 | -10/Materials | Identified exit to Materials 946 | -10/Materials | Entered Mines 1189 | -10/Mines | Received a Rocket Launcher from a helpful Derelict 1201 | -10/Mines | Learned location of Storage (-8) 1370 | -10/Mines | Core integrity fell below 50% 1426 | -10/Mines | Core integrity fell below 20% 1439 | -10/Mines | Destroyed by S-10 Pest with Light Assault Rifle Last Messages --------------- K-01 Serf collects debris. Acquired Rocket Launcher. K-01 Serf collects debris. Acquired derelict log, extracted data. World map updated: -8/Storage. K-01 Serf collects debris. S-10 Pest destroyed. Core Extractor disabled. To regain energy, simply wait via the mouse wheel '.', or KP5. Also make sure your per-turn energy generation is a net positive, and consider deactivating power-draining parts if not. Aluminum Leg destroyed. K-01 Serf collects debris. Destroyed Flight Unit. Grenade Launcher destroyed. Destroyed Grenade Launcher. Rocket Launcher destroyed. Destroyed Rocket Launcher. K-01 Serf collects debris. [Achievement: First Step to Greatness] Map ----- +----------------------------------------------------+ | ??????????????????####### #???????????????????? | | ????????????????????????# #???????????????????? | | ????????????????????????# #???????????????????? | | ?????"??????????????????# #???????????????????? | | ?????"" ????????????????# #???????????????????? | | ????""" ??????????????# #???????????????????? | | ????? ????????????# ####????????????????? | | ?????"" """ ########### #####????????????? | | ?????"" "" ##???????????? | | ?????"" """ #???????????? | | ???=%= ########## #???????????? | | ????""" """ ?????????## """ ##???????????? | | ?????"" """ ???????????## """ ##????????????? | | ????????""" ?????????????# """ #?????????????? | | ??????? ??????????????# #?????????????? | | ???????####?????????????## ## ##????#????????? | | ??????????????????????### ##?####### #????????? | | ?????????????????????## #???## ?????????? | | ?????????????????????# #### ###?????????? | | ?????????????????????# #?????????? | | ?????????????????????## ##### #?????????? | | ??????????????????#???## #???# #?????????? | | ??????????????????# ???# #??## #??????????# | | ??????????????????# ### #??# #??????????# | | ??????????????????# #### ##??????????# | | ??????????????????# @ ## ##?????????? | | ??????????????????##### s ##????????? | | ??????????????????????## s #????????? | | ???????????????????????# ## #????????? | | ???????????????????????# ##?###????????? | | ???????????????????????## ##?????????????? | | ????????????????????????#### ###??????????????? | | ???????????????????????????####????????????????? | | ???????????????????????????????????????????????? | | | | | | | | | | | | | | | | | | | | | | | | | | | | | | | | | +----------------------------------------------------+ Best States ------------- Heat Dissipation 25 Energy Generation 10 Energy Capacity 125 Matter Stores 300 Matter Capacity 300 Sight Range 16 Terrain Scan Density 10 Reclamation Efficiency 10 Evasion (%) 50 Item Schematics ----------------- None Robot Schematics ------------------ None Fabricated ------------ Nothing Alien Tech Used ----------------- None Achievements -------------- First Step to Greatness Let's See Who's Tougher Challenges ------------ None Game ------ Seed WarpRegenerativePrototype Manual? 0 Play Time 00:46:08 Cumulative 1.5 hours Start 2021.12.11 @ 23:05:37 End 2021.12.12 @ 12:52:10 Sessions 2 Manual Loads 0 Difficulty Rogue Special Mode None Game No. 1 Rogue 1 Adventurer 0 Explorer 0 Win Type - Total 0 Types 0/0/0/0/0/0/0/0/0 Lore% 0 Gallery% 2 Achievement% 1 Wizard Run 0 Options --------- ASCII 0 Keyboard 1 Movement Vi Keybinds 0 Fullscreen 1 Font 18/SmallcapsGlow Map View 76x50 Tactical HUD 0 Map Filters NONE Filters NONE Steam 1 RUN: 23f50f9d-26b7-4bfc-b603-56a196d48dff